[Event "120th Taflfelag Reykjavik-B 2020"]
[Site "Reykjavik"]
[Date "2020.09.14"]
[Round "1.6"]
[White "Jonsson, Gauti Pall"]
[Black "Gudmundsson, Gunnar Erik"]
[Result "1/2-1/2"]
[ECO "B33"]
[WhiteElo "2046"]
[BlackElo "1801"]
[Annotator "ChessBase"]
[PlyCount "137"]
[EventDate "2020.09.13"]
[EventType "tourn"]
[EventCountry "ISL"]
[SourceTitle "playchess.com"]
[Source "ChessBase"]
[SourceQuality "1"]
[TimeControl "40/5400+15:1800+30"]

1. e4 {[%emt 0:00:00]} c5 {[%emt 0:00:00]} 2. Nf3 {[%emt 0:00:03]} Nc6 {[%emt 0:00:08]} 3. d4 {[%emt 0:00:38]} cxd4 {[%emt 0:00:06]} 4. Nxd4 {[%emt 0:00:00]} Nf6 {[%emt 0:00:38]} 5. Nc3 {[%emt 0:00:52]} e5 {[%emt 0:00:59]} 6. Ndb5 {[%emt 0:00:34]} d6 {[%emt 0:00:19]} 7. Bg5 {[%emt 0:01:17]} a6 {[%emt 0:00:27]} 8. Na3 {[%emt 0:00:03]} b5 {[%emt 0:00:30]} 9. Bxf6 {[%emt 0:01:21]} gxf6 {[%emt 0:00:08]} 10. Nd5 {[%emt 0:01:18]} f5 {[%emt 0:02:30]} 11. Bd3 {[%emt 0:02:18]} Be6 {[%emt 0:00:43]} 12. O-O {[%emt 0:01:41]} Bxd5 {[%emt 0:02:45]} 13. exd5 {[%emt 0:00:00]} Ne7 {[%emt 0:00:00]} 14. c3 {[%emt 0:02:45]} Bg7 {[%emt 0:01:32]} 15. Qh5 {[%emt 0:03:37]} e4 {[%emt 0:03:13]} 16. Bc2 {[%emt 0:02:31]} Qd7 {[%emt 0:02:29]} 17. Rae1 {[%emt 0:10:55]} O-O {[%emt 0:04:29]} 18. g4 {[%emt 0:14:19]} fxg4 {[%emt 0:09:44]} 19. Rxe4 {[%emt 0:03:17]} f5 {[%emt 0:05:24]} 20. Rxg4 {[%emt 0:04:32]} Ng6 {[%emt 0:12:29]} 21. Rg5 {[%emt 0:06:18]} Nf4 {[%emt 0:09:36]} 22. Qf3 {[%emt 0:02:11]} Ng6 {[%emt 0:06:47]} 23. Kh1 {[%emt 0:19:01]} Rf6 {[%emt 0:07:41]} 24. Rfg1 {[%emt 0:00:54]} Raf8 {[%emt 0:00:33]} 25. h4 {[%emt 0:03:43]} Kh8 {[%emt 0:00:57]} 26. h5 {[%emt 0:01:30]} Ne5 {[%emt 0:00:26]} 27. Qg2 {[%emt 0:02:06]} R8f7 {[%emt 0:02:55]} 28. f3 {[%emt 0:02:32]} f4 {[%emt 0:03:55]} 29. Re1 {[%emt 0:05:32]} h6 {[%emt 0:02:13]} 30. Rgxe5 {[%emt 0:00:00]} dxe5 {[%emt 0:00:00]} 31. Rxe5 {[%emt 0:00:03]} Re7 {[%emt 0:01:05]} 32. Rxe7 {[%emt 0:00:23]} Qxe7 {[%emt 0:00:00]} 33. Be4 {[%emt 0:00:00]} Qd7 {[%emt 0:09:18]} 34. Nc2 {[%emt 0:00:03]} Rd6 {[%emt 0:00:19]} 35. Nb4 {[%emt 0:00:11]} a5 {[%emt 0:00:25]} 36. Nd3 {[%emt 0:00:32]} Qf7 {[%emt 0:02:41]} 37. Qg4 {[%emt 0:00:12]} Rf6 {[%emt 0:00:46]} 38. Ne5 {[%emt 0:00:11]} Qc7 {[%emt 0:00:25]} 39. Ng6+ {[%emt 0:01:01]} Kg8 {[%emt 0:00:09]} 40. Bf5 {[%emt 0:00:00]} b4 {[%emt 0:00:00]} 41. Nxf4 {[%emt 0:20:30]} Qe5 {[%emt 0:19:59]} 42. Be6+ {[%emt 0:01:26]} Kh7 {[%emt 0:00:54]} 43. Nd3 {[%emt 0:03:15]} Qe2 {[%emt 0:03:00]} 44. Bf5+ {[%emt 0:02:08]} Kg8 {[%emt 0:01:02]} 45. Qe4 {[%emt 0:01:24]} Qd1+ {[%emt 0:02:19]} 46. Kg2 {[%emt 0:01:06]} Qd2+ {[%emt 0:01:12]} 47. Kh3 {[%emt 0:01:33]} Qd1 {[%emt 0:03:07]} 48. Nf4 {[%emt 0:02:06]} Qh1+ {[%emt 0:03:14]} 49. Kg3 {[%emt 0:00:59]} Qg1+ {[%emt 0:00:36]} 50. Ng2 {[%emt 0:01:22]} Qh1 {[%emt 0:00:36]} 51. Qe8+ {[%emt 0:01:02]} Rf8 {[%emt 0:00:47]} 52. Qe6+ {[%emt 0:00:45]} Kh8 {[%emt 0:00:30]} 53. Be4 {[%emt 0:00:30]} Qxh5 {[%emt 0:00:30]} 54. Nh4 {[%emt 0:00:30]} Be5+ {[%emt 0:00:30]} 55. Kh3 {[%emt 0:00:30]} Bf6 {[%emt 0:00:30]} 56. Qg4 {[%emt 0:00:30]} Qxg4+ {[%emt 0:00:30]} 57. Kxg4 {[%emt 0:00:30]} Bxh4 {[%emt 0:00:30]} 58. Kxh4 {[%emt 0:00:30]} Kg7 {[%emt 0:00:30]} 59. c4 {[%emt 0:00:30]} Rc8 {[%emt 0:00:30]} 60. b3 {[%emt 0:00:30]} Kf6 {[%emt 0:00:30]} 61. Kh5 {[%emt 0:00:30]} a4 {[%emt 0:00:30]} 62. d6 {[%emt 0:00:30]} Ke6 {[%emt 0:00:30]} 63. d7 {[%emt 0:00:30]} Rd8 {[%emt 0:00:30]} 64. Bc6 {[%emt 0:00:30]} axb3 {[%emt 0:00:30]} 65. axb3 {[%emt 0:00:30]} Kd6 {[%emt 0:00:30]} 66. Bb5 {[%emt 0:00:30]} Kc7 {[%emt 0:00:30]} 67. Kxh6 {[%emt 0:00:30]} Rf8 {[%emt 0:00:30]} 68. Kg7 {[%emt 0:00:30]} Rxf3 {[%emt 0:00:30]} 69. Ba4 {[%emt 0:00:30]} 1/2-1/2

[Event "120th Taflfelag Reykjavik-B 2020"]
[Site "Reykjavik"]
[Date "2020.09.14"]
[Round "1.7"]
[White "Olafsson, Thorvardur"]
[Black "Heidarsson, Arnar Milutin"]
[Result "1-0"]
[ECO "C07"]
[WhiteElo "2111"]
[BlackElo "1965"]
[Annotator "ChessBase"]
[PlyCount "52"]
[EventDate "2020.09.13"]
[EventType "tourn"]
[EventCountry "ISL"]
[SourceTitle "playchess.com"]
[Source "ChessBase"]
[SourceQuality "1"]
[TimeControl "40/5400+15:1800+30"]

1. e4 {[%emt 0:00:00]} e6 {[%emt 0:00:00]} 2. d4 {[%emt 0:00:00]} d5 {[%emt 0:00:00]} 3. Nd2 {[%emt 0:00:00]} c5 {[%emt 0:00:00]} 4. exd5 {[%emt 0:00:00]} Qxd5 {[%emt 0:00:03]} 5. Ngf3 {[%emt 0:00:00]} Nc6 {[%emt 0:00:54]} 6. Bc4 {[%emt 0:02:30]} Qd8 {[%emt 0:04:38]} 7. dxc5 {[%emt 0:02:24]} Bxc5 {[%emt 0:00:16]} 8. Ne4 {[%emt 0:05:18]} Qxd1+ {[%emt 0:00:56]} 9. Kxd1 {[%emt 0:00:00]} Be7 {[%emt 0:01:02]} 10. Bg5 {[%emt 0:05:54]} a6 {[%emt 0:06:48]} 11. Bxe7 {[%emt 0:06:01]} Kxe7 {[%emt 0:02:44]} 12. c3 {[%emt 0:00:19]} Nf6 {[%emt 0:06:53]} 13. Nxf6 {[%emt 0:04:46]} Kxf6 {[%emt 0:02:29]} 14. Kc2 {[%emt 0:01:52]} b5 {[%emt 0:00:23]} 15. Be2 {[%emt 0:00:50]} Bb7 {[%emt 0:00:30]} 16. Rhd1 {[%emt 0:05:03]} Rhd8 {[%emt 0:00:57]} 17. g3 {[%emt 0:02:41]} Rxd1 {[%emt 0:04:07]} 18. Rxd1 {[%emt 0:00:31]} Rd8 {[%emt 0:00:00]} 19. Rxd8 {[%emt 0:01:38]} Nxd8 {[%emt 0:00:00]} 20. Nd4 {[%emt 0:00:52]} e5 {[%emt 0:02:53]} 21. Nb3 {[%emt 0:01:45]} Ke6 {[%emt 0:02:44]} 22. Nc5+ {[%emt 0:04:37]} Kd6 {[%emt 0:01:44]} 23. b4 {[%emt 0:02:31]} f5 {[%emt 0:03:38]} 24. a4 {[%emt 0:10:02]} Bc6 {[%emt 0:03:19]} 25. a5 {[%emt 0:01:46]} Bb7 {[%emt 0:03:59]} 26. Bxb5 {[%emt 0:01:06]} axb5 {[%emt 0:02:44]} 1-0

[Event "120th Taflfelag Reykjavik-B 2020"]
[Site "Reykjavik"]
[Date "2020.09.14"]
[Round "1.8"]
[White "Johannsson, Birkir Isak"]
[Black "Ptacnikova, Lenka"]
[Result "0-1"]
[ECO "A37"]
[WhiteElo "2146"]
[BlackElo "2117"]
[Annotator "ChessBase"]
[PlyCount "120"]
[EventDate "2020.09.13"]
[EventType "tourn"]
[EventCountry "ISL"]
[SourceTitle "playchess.com"]
[Source "ChessBase"]
[SourceQuality "1"]
[TimeControl "40/5400+15:1800+30"]

1. c4 {[%emt 0:00:00]} e5 {[%emt 0:00:11]} 2. Nc3 {[%emt 0:00:00]} c5 {[%emt 0:04:14]} 3. Nf3 {[%emt 0:00:54]} Nc6 {[%emt 0:00:08]} 4. g3 {[%emt 0:00:00]} g6 {[%emt 0:01:21]} 5. Bg2 {[%emt 0:00:00]} Bg7 {[%emt 0:00:00]} 6. a3 {[%emt 0:02:03]} Nge7 {[%emt 0:00:20]} 7. O-O {[%emt 0:03:38]} O-O {[%emt 0:00:00]} 8. Rb1 {[%emt 0:05:11]} a5 {[%emt 0:01:10]} 9. Ne1 {[%emt 0:02:25]} d6 {[%emt 0:01:05]} 10. Nc2 {[%emt 0:00:00]} Be6 {[%emt 0:04:46]} 11. Ne3 {[%emt 0:00:26]} f5 {[%emt 0:00:26]} 12. d3 {[%emt 1:18:23]} Rb8 {[%emt 0:04:43]} 13. Bd2 {[%emt 0:00:00]} f4 {[%emt 0:03:15]} 14. Ned5 {[%emt 0:00:00]} g5 {[%emt 0:00:17]} 15. b4 {[%emt 0:00:00]} axb4 {[%emt 0:00:57]} 16. axb4 {[%emt 0:00:00]} Nd4 {[%emt 0:06:29]} 17. e3 {[%emt 0:00:00]} f3 {[%emt 0:06:04]} 18. Bh1 {[%emt 0:00:00]} Nxd5 {[%emt 0:24:00]} 19. cxd5 {[%emt 0:00:00]} Bh3 {[%emt 0:08:44]} 20. Re1 {[%emt 0:00:00]} Nf5 {[%emt 0:01:01]} 21. Bxf3 {[%emt 0:00:00]} cxb4 {[%emt 0:05:28]} 22. Rxb4 {[%emt 0:00:00]} Nh6 {[%emt 0:03:17]} 23. Ne4 {[%emt 0:00:00]} Bf5 {[%emt 0:01:25]} 24. Qe2 {[%emt 0:00:00]} g4 {[%emt 0:02:47]} 25. Bg2 {[%emt 0:00:00]} Nf7 {[%emt 0:00:00]} 26. Reb1 {[%emt 0:00:00]} b6 {[%emt 0:01:14]} 27. Be1 {[%emt 0:00:00]} h5 {[%emt 0:01:32]} 28. Qb2 {[%emt 0:00:00]} Qc7 {[%emt 0:00:17]} 29. Rxb6 {[%emt 0:00:00]} Rxb6 {[%emt 0:00:30]} 30. Qxb6 {[%emt 0:00:00]} Qc2 {[%emt 0:00:00]} 31. Qb3 {[%emt 0:00:00]} Qe2 {[%emt 0:00:11]} 32. Qd1 {[%emt 0:00:00]} Qa2 {[%emt 0:00:01]} 33. Rb6 {[%emt 0:00:00]} Bxe4 {[%emt 0:01:23]} 34. dxe4 {[%emt 0:00:00]} Rc8 {[%emt 0:00:23]} 35. Qb1 {[%emt 0:00:00]} Qxb1 {[%emt 0:00:40]} 36. Rxb1 {[%emt 0:00:00]} Ng5 {[%emt 0:00:00]} 37. f4 {[%emt 0:00:00]} gxf3 {[%emt 0:00:00]} 38. Bh1 {[%emt 0:00:00]} Rc2 {[%emt 0:00:00]} 39. h4 {[%emt 0:03:07]} f2+ {[%emt 0:00:56]} 40. Kf1 {[%emt 0:00:00]} fxe1=Q+ {[%emt 0:00:00]} 41. Kxe1 {[%emt 0:17:02]} Rh2 {[%emt 0:22:39]} 42. Rb8+ {[%emt 0:01:29]} Bf8 {[%emt 0:00:12]} 43. hxg5 {[%emt 0:00:06]} Rxh1+ {[%emt 0:00:04]} 44. Kf2 {[%emt 0:00:09]} Rh2+ {[%emt 0:00:58]} 45. Kf3 {[%emt 0:00:06]} Ra2 {[%emt 0:00:20]} 46. Re8 {[%emt 0:00:43]} Ra7 {[%emt 0:00:33]} 47. g6 {[%emt 0:03:14]} Kg7 {[%emt 0:07:01]} 48. Re6 {[%emt 0:00:11]} Be7 {[%emt 0:05:31]} 49. Kf2 {[%emt 0:00:28]} Rd7 {[%emt 0:00:36]} 50. Kf3 {[%emt 0:00:31]} Bf6 {[%emt 0:00:08]} 51. Kg2 {[%emt 0:00:05]} Kxg6 {[%emt 0:00:14]} 52. Kf3 {[%emt 0:00:04]} Kg5 {[%emt 0:01:36]} 53. Kg2 {[%emt 0:00:08]} Bd8 {[%emt 0:00:34]} 54. Kf3 {[%emt 0:00:07]} Bb6 {[%emt 0:00:22]} 55. Re8 {[%emt 0:00:24]} Rd8 {[%emt 0:00:59]} 56. Re7 {[%emt 0:00:05]} Rf8+ {[%emt 0:00:55]} 57. Ke2 {[%emt 0:00:11]} Ra8 {[%emt 0:00:40]} 58. Rg7+ {[%emt 0:00:12]} Kf6 {[%emt 0:00:33]} 59. Rb7 {[%emt 0:00:03]} Bc5 {[%emt 0:00:08]} 60. Rb3 {[%emt 0:00:04]} Kg5 {[%emt 0:00:30]} 0-1

[Event "120th Taflfelag Reykjavik-B 2020"]
[Site "Reykjavik"]
[Date "2020.09.14"]
[Round "1.10"]
[White "Mai, Alexander Oliver"]
[Black "Hardarson, Petur Palmi"]
[Result "1/2-1/2"]
[ECO "B31"]
[WhiteElo "2055"]
[BlackElo "2061"]
[Annotator "ChessBase"]
[PlyCount "72"]
[EventDate "2020.09.13"]
[EventType "tourn"]
[EventCountry "ISL"]
[SourceTitle "playchess.com"]
[Source "ChessBase"]
[SourceQuality "1"]
[TimeControl "40/5400+15:1800+30"]

1. e4 {[%emt 0:00:00]} c5 {[%emt 0:00:00]} 2. Nf3 {[%emt 0:00:00]} Nc6 {[%emt 0:00:00]} 3. Bb5 {[%emt 0:00:00]} g6 {[%emt 0:00:31]} 4. Bxc6 {[%emt 0:00:00]} dxc6 {[%emt 0:00:13]} 5. d3 {[%emt 0:00:00]} Bg7 {[%emt 0:00:20]} 6. h3 {[%emt 0:00:00]} Qc7 {[%emt 0:05:55]} 7. O-O {[%emt 0:05:45]} e5 {[%emt 0:01:26]} 8. a3 {[%emt 0:04:41]} a5 {[%emt 0:09:14]} 9. Nbd2 {[%emt 0:06:42]} Ne7 {[%emt 0:03:03]} 10. Rb1 {[%emt 0:02:44]} O-O {[%emt 0:05:29]} 11. b4 {[%emt 0:05:04]} axb4 {[%emt 0:07:21]} 12. axb4 {[%emt 0:00:21]} cxb4 {[%emt 0:00:14]} 13. Rxb4 {[%emt 0:00:13]} Be6 {[%emt 0:02:05]} 14. Rb2 {[%emt 0:21:50]} Rfd8 {[%emt 0:04:16]} 15. Qe2 {[%emt 0:01:45]} f6 {[%emt 0:07:05]} 16. Nb3 {[%emt 0:03:58]} b6 {[%emt 0:03:41]} 17. Be3 {[%emt 0:01:43]} c5 {[%emt 0:00:52]} 18. Nfd2 {[%emt 0:06:36]} Nc6 {[%emt 0:10:34]} 19. c3 {[%emt 0:01:12]} f5 {[%emt 0:10:41]} 20. f3 {[%emt 0:00:26]} f4 {[%emt 0:01:43]} 21. Bf2 {[%emt 0:00:02]} g5 {[%emt 0:01:21]} 22. Rfb1 {[%emt 0:03:14]} Rd6 {[%emt 0:02:12]} 23. Nc4 {[%emt 0:05:24]} Bxc4 {[%emt 0:00:37]} 24. dxc4 {[%emt 0:00:00]} Rad8 {[%emt 0:00:53]} 25. Rd2 {[%emt 0:03:27]} R8d7 {[%emt 0:02:02]} 26. Rbd1 {[%emt 0:00:53]} Qd8 {[%emt 0:00:16]} 27. Rd5 {[%emt 0:01:43]} Ne7 {[%emt 0:00:48]} 28. Rxd6 {[%emt 0:00:55]} Rxd6 {[%emt 0:00:00]} 29. Rxd6 {[%emt 0:01:05]} Qxd6 {[%emt 0:00:00]} 30. Qd2 {[%emt 0:09:35]} Qxd2 {[%emt 0:00:00]} 31. Nxd2 {[%emt 0:00:00]} Kf7 {[%emt 0:00:03]} 32. Kf1 {[%emt 0:00:09]} Ke6 {[%emt 0:01:45]} 33. Ke2 {[%emt 0:00:02]} Kd6 {[%emt 0:00:26]} 34. Kd3 {[%emt 0:01:25]} Kc6 {[%emt 0:01:12]} 35. Nb1 {[%emt 0:00:41]} Nc8 {[%emt 0:00:17]} 36. Na3 {[%emt 0:00:06]} Nd6 {[%emt 0:00:06]} 1/2-1/2

[Event "120th Taflfelag Reykjavik-B 2020"]
[Site "Reykjavik"]
[Date "2020.09.17"]
[Round "2.7"]
[White "Ragnarsson, Johann"]
[Black "Mai, Alexander Oliver"]
[Result "0-1"]
[ECO "A68"]
[WhiteElo "1952"]
[BlackElo "2055"]
[Annotator "ChessBase"]
[PlyCount "38"]
[EventDate "2020.09.13"]
[EventType "tourn"]
[EventCountry "ISL"]
[TimeControl "40/5400+15:1800+30"]

1. d4 {[%emt 0:00:00]} Nf6 {[%emt 0:00:00]} 2. c4 {[%emt 0:00:00]} g6 {[%emt 0:00:00]} 3. Nc3 {[%emt 0:00:00]} Bg7 {[%emt 0:00:00]} 4. e4 {[%emt 0:00:00]} d6 {[%emt 0:00:00]} 5. f4 {[%emt 0:00:00]} c5 {[%emt 0:00:00]} 6. d5 {[%emt 0:07:24]} O-O {[%emt 0:00:00]} 7. Nf3 {[%emt 0:00:00]} e6 {[%emt 0:00:00]} 8. Be2 {[%emt 0:00:00]} exd5 {[%emt 0:00:00]} 9. cxd5 {[%emt 0:00:00]} Nbd7 {[%emt 0:00:00]} 10. e5 {[%emt 0:04:16]} dxe5 {[%emt 0:01:09]} 11. fxe5 {[%emt 0:04:21]} Ng4 {[%emt 0:00:28]} 12. e6 {[%emt 0:00:15]} Nde5 {[%emt 0:01:37]} 13. exf7+ {[%emt 0:05:03]} Rxf7 {[%emt 0:06:16]} 14. O-O {[%emt 0:00:54]} Nxf3+ {[%emt 0:03:34]} 15. Bxf3 {[%emt 0:06:42]} Bd4+ {[%emt 0:01:08]} 16. Kh1 {[%emt 0:00:00]} Nxh2 {[%emt 0:10:10]} 17. Qe1 {[%emt 0:15:16]} Nxf1 {[%emt 0:06:41]} 18. d6 {[%emt 0:13:57]} Qxd6 {[%emt 0:09:07]} 19. Ne4 {[%emt 0:04:56]} Qh2# {[%emt 0:00:01]} 0-1

[Event "120th Taflfelag Reykjavik-B 2020"]
[Site "Reykjavik"]
[Date "2020.09.24"]
[Round "5.7"]
[White "Briem, Benedikt"]
[Black "Olafsson, Thorvardur"]
[Result "1/2-1/2"]
[ECO "B08"]
[WhiteElo "1951"]
[BlackElo "2111"]
[Annotator "NA"]
[PlyCount "48"]
[EventDate "2020.09.13"]
[EventType "tourn"]
[EventCountry "ISL"]
[SourceTitle "playchess.com"]
[Source "ChessBase"]
[SourceQuality "1"]
[TimeControl "40/5400+15:1800+30"]

1. Nf3 {[%emt 0:00:00]} Nf6 {[%emt 0:00:00]} 2. d4 {[%emt 0:00:00]} g6 {[%emt 0:00:23]} 3. Nc3 {[%emt 0:00:00]} Bg7 {[%emt 0:01:58]} 4. e4 {[%emt 0:00:00]} d6 {[%emt 0:00:13]} 5. Bf4 {[%emt 0:00:00]} O-O {[%emt 0:03:00]} 6. Qd2 {[%emt 0:00:00]} Bg4 {[%emt 0:09:10]} 7. Be2 {[%emt 0:00:50]} Nbd7 {[%emt 0:05:40]} 8. Bh6 {[%emt 0:00:55]} c5 {[%emt 0:03:20]} 9. Bxg7 {[%emt 0:06:49]} Kxg7 {[%emt 0:03:50]} 10. d5 {[%emt 0:00:26]} a6 {[%emt 0:02:57]} 11. O-O {[%emt 0:03:48]} b5 {[%emt 0:00:34]} 12. Nh4 {[%emt 0:03:31]} Bxe2 {[%emt 0:12:34]} 13. Qxe2 {[%emt 0:00:07]} e5 {[%emt 0:03:25]} 14. g3 {[%emt 0:03:27]} Ng8 {[%emt 0:08:14]} 15. Qg4 {[%emt 0:09:37]} Ndf6 {[%emt 0:04:40]} 16. Qf3 {[%emt 0:01:57]} Qd7 {[%emt 0:01:04]} 17. Kg2 {[%emt 0:04:03]} Qg4 {[%emt 0:01:18]} 18. Qxg4 {[%emt 0:02:11]} Nxg4 {[%emt 0:00:00]} 19. h3 {[%emt 0:00:16]} N4f6 {[%emt 0:00:00]} 20. b3 {[%emt 0:05:28]} Nd7 {[%emt 0:00:26]} 21. a4 {[%emt 0:09:20]} b4 {[%emt 0:00:44]} 22. Nd1 {[%emt 0:03:22]} Ngf6 {[%emt 0:05:44]} 23. Re1 {[%emt 0:01:42]} a5 {[%emt 0:00:42]} 24. c4 {[%emt 0:01:12]} Ng8 {[%emt 0:01:07]} 1/2-1/2

[Event "120th Taflfelag Reykjavik-B 2020"]
[Site "Reykjavik"]
[Date "2020.09.24"]
[Round "5.8"]
[White "Mai, Alexander Oliver"]
[Black "Jonsson, Gauti Pall"]
[Result "0-1"]
[ECO "B04"]
[WhiteElo "2055"]
[BlackElo "2046"]
[Annotator "NA"]
[PlyCount "134"]
[EventDate "2020.09.13"]
[EventType "tourn"]
[EventCountry "ISL"]
[SourceTitle "playchess.com"]
[Source "ChessBase"]
[SourceQuality "1"]
[TimeControl "40/5400+15:1800+30"]

1. e4 {[%emt 0:00:00]} Nf6 {[%emt 0:00:00]} 2. e5 {[%emt 0:00:00]} Nd5 {[%emt 0:00:00]} 3. d4 {[%emt 0:00:00]} d6 {[%emt 0:00:07]} 4. Nf3 {[%emt 0:00:00]} dxe5 {[%emt 0:00:44]} 5. Nxe5 {[%emt 0:00:00]} g6 {[%emt 0:00:23]} 6. Be2 {[%emt 0:05:07]} Bg7 {[%emt 0:00:54]} 7. O-O {[%emt 0:00:40]} O-O {[%emt 0:02:17]} 8. c4 {[%emt 0:04:11]} Nb6 {[%emt 0:04:20]} 9. Nc3 {[%emt 0:12:03]} c5 {[%emt 0:02:27]} 10. Be3 {[%emt 0:03:01]} N8d7 {[%emt 0:06:10]} 11. Nxd7 {[%emt 0:06:24]} Nxd7 {[%emt 0:01:24]} 12. dxc5 {[%emt 0:14:44]} Bxc3 {[%emt 0:02:29]} 13. bxc3 {[%emt 0:00:00]} Ne5 {[%emt 0:00:30]} 14. Qd5 {[%emt 0:06:06]} Nc6 {[%emt 0:01:27]} 15. Qxd8 {[%emt 0:12:49]} Rxd8 {[%emt 0:00:16]} 16. Rab1 {[%emt 0:00:00]} Rb8 {[%emt 0:04:45]} 17. Rb2 {[%emt 0:02:07]} Bf5 {[%emt 0:00:47]} 18. f4 {[%emt 0:02:02]} Bd3 {[%emt 0:02:46]} 19. Kf2 {[%emt 0:00:36]} Bxe2 {[%emt 0:05:45]} 20. Kxe2 {[%emt 0:00:00]} Rd7 {[%emt 0:03:10]} 21. Rfb1 {[%emt 0:00:56]} Nd8 {[%emt 0:02:41]} 22. Bd4 {[%emt 0:01:08]} Rc8 {[%emt 0:01:02]} 23. Ke3 {[%emt 0:02:11]} Rc6 {[%emt 0:00:52]} 24. Rb3 {[%emt 0:01:32]} Ra6 {[%emt 0:01:28]} 25. R1b2 {[%emt 0:00:31]} f6 {[%emt 0:02:22]} 26. Kf3 {[%emt 0:01:23]} Ra4 {[%emt 0:01:38]} 27. Rb4 {[%emt 0:00:53]} Rxb4 {[%emt 0:00:09]} 28. Rxb4 {[%emt 0:00:00]} Nc6 {[%emt 0:02:09]} 29. Rb2 {[%emt 0:01:05]} Kf7 {[%emt 0:00:52]} 30. Ke4 {[%emt 0:00:39]} Ke8 {[%emt 0:00:25]} 31. g4 {[%emt 0:01:57]} e5 {[%emt 0:04:54]} 32. fxe5 {[%emt 0:00:51]} fxe5 {[%emt 0:00:00]} 33. Be3 {[%emt 0:01:53]} Na5 {[%emt 0:01:11]} 34. Rb4 {[%emt 0:00:00]} Nc6 {[%emt 0:00:00]} 35. Rb2 {[%emt 0:00:48]} Na5 {[%emt 0:02:00]} 36. Rb4 {[%emt 0:00:00]} Kd8 {[%emt 0:04:51]} 37. Ra4 {[%emt 0:00:51]} Nc6 {[%emt 0:00:00]} 38. Ra3 {[%emt 0:00:14]} Kc7 {[%emt 0:01:29]} 39. Rb3 {[%emt 0:06:32]} Na5 {[%emt 0:00:24]} 40. Rb1 {[%emt 0:00:00]} Nxc4 {[%emt 0:00:00]} 41. Rf1 {[%emt 0:19:01]} Kc6 {[%emt 0:16:52]} 42. Rf6+ {[%emt 0:00:39]} Kb5 {[%emt 0:00:54]} 43. Bf2 {[%emt 0:04:32]} Rd2 {[%emt 0:02:04]} 44. c6 {[%emt 0:06:52]} bxc6 {[%emt 0:01:56]} 45. a4+ {[%emt 0:00:15]} Kxa4 {[%emt 0:00:44]} 46. Rxc6 {[%emt 0:01:31]} Kb3 {[%emt 0:00:35]} 47. Bxa7 {[%emt 0:00:48]} Rxh2 {[%emt 0:00:28]} 48. Bb8 {[%emt 0:01:45]} Re2+ {[%emt 0:02:10]} 49. Kd5 {[%emt 0:01:05]} Rd2+ {[%emt 0:00:14]} 50. Ke4 {[%emt 0:00:27]} Rg2 {[%emt 0:01:07]} 51. Kf3 {[%emt 0:01:30]} Rc2 {[%emt 0:01:08]} 52. Ke4 {[%emt 0:00:47]} Rxc3 {[%emt 0:01:16]} 53. Bxe5 {[%emt 0:01:20]} Re3+ {[%emt 0:00:49]} 54. Kd4 {[%emt 0:00:04]} Nxe5 {[%emt 0:03:39]} 55. Rb6+ {[%emt 0:01:51]} Ka4 {[%emt 0:00:14]} 56. Kxe3 {[%emt 0:01:08]} Nc4+ {[%emt 0:00:06]} 57. Kf4 {[%emt 0:00:06]} Nxb6 {[%emt 0:00:08]} 58. Kg5 {[%emt 0:01:07]} Nd7 {[%emt 0:02:05]} 59. Kh6 {[%emt 0:00:19]} Kb5 {[%emt 0:00:43]} 60. Kxh7 {[%emt 0:00:50]} Ne5 {[%emt 0:00:05]} 61. Kg7 {[%emt 0:00:42]} Kc5 {[%emt 0:00:09]} 62. Kf6 {[%emt 0:00:10]} Kd5 {[%emt 0:00:18]} 63. g5 {[%emt 0:00:54]} Kd6 {[%emt 0:00:24]} 64. Kg7 {[%emt 0:00:09]} Ke6 {[%emt 0:00:04]} 65. Kh7 {[%emt 0:00:22]} Kf5 {[%emt 0:00:23]} 66. Kh6 {[%emt 0:00:08]} Ng4+ {[%emt 0:00:08]} 67. Kg7 {[%emt 0:00:05]} Kxg5 {[%emt 0:00:07]} 0-1

[Event "120th Taflfelag Reykjavik-B 2020"]
[Site "Reykjavik"]
[Date "2020.09.24"]
[Round "5.9"]
[White "Hardarson, Petur Palmi"]
[Black "Heidarsson, Arnar Milutin"]
[Result "1-0"]
[ECO "D85"]
[WhiteElo "2061"]
[BlackElo "1965"]
[Annotator "NA"]
[PlyCount "49"]
[EventDate "2020.09.13"]
[EventType "tourn"]
[EventCountry "ISL"]
[SourceTitle "playchess.com"]
[Source "ChessBase"]
[SourceQuality "1"]
[TimeControl "40/5400+15:1800+30"]

1. d4 {[%emt 0:00:13]} Nf6 {[%emt 0:00:00]} 2. c4 {[%emt 0:00:07]} g6 {[%emt 0:00:00]} 3. Nc3 {[%emt 0:01:00]} d5 {[%emt 0:00:00]} 4. cxd5 {[%emt 0:00:11]} Nxd5 {[%emt 0:00:00]} 5. e4 {[%emt 0:00:00]} Nxc3 {[%emt 0:00:00]} 6. bxc3 {[%emt 0:00:00]} Bg7 {[%emt 0:00:00]} 7. Nf3 {[%emt 0:00:15]} c5 {[%emt 0:00:00]} 8. Bb5+ {[%emt 0:00:28]} Bd7 {[%emt 0:00:00]} 9. Be2 {[%emt 0:00:35]} O-O {[%emt 0:00:34]} 10. O-O {[%emt 0:04:29]} cxd4 {[%emt 0:01:52]} 11. cxd4 {[%emt 0:00:05]} Nc6 {[%emt 0:00:48]} 12. Be3 {[%emt 0:01:45]} Rc8 {[%emt 0:03:40]} 13. Rb1 {[%emt 0:08:40]} Na5 {[%emt 0:04:55]} 14. d5 {[%emt 0:03:13]} b6 {[%emt 0:03:30]} 15. Ba6 {[%emt 0:03:00]} Rc3 {[%emt 0:04:01]} 16. Bd4 {[%emt 0:06:55]} Bxd4 {[%emt 0:00:00]} 17. Qxd4 {[%emt 0:00:00]} Qc7 {[%emt 0:00:23]} 18. Ne5 {[%emt 0:06:37]} Bc8 {[%emt 0:04:43]} 19. Bb5 {[%emt 0:17:48]} Rd8 {[%emt 0:11:28]} 20. Rfd1 {[%emt 0:02:53]} Qc5 {[%emt 0:04:43]} 21. Qd2 {[%emt 0:04:15]} a6 {[%emt 0:04:44]} 22. Bf1 {[%emt 0:05:50]} b5 {[%emt 0:04:55]} 23. Rdc1 {[%emt 0:03:24]} Rxc1 {[%emt 0:02:57]} 24. Rxc1 {[%emt 0:00:00]} Qd6 {[%emt 0:01:17]} 25. Qxa5 {[%emt 0:01:25]} 1-0